Cogmind - Beta 13 @@@ ROGUE MODE // 2024.04.21 @ 07:50:16 Player: e.v.o Result: Self-destructed Performance ------------- Evolutions (1) 500 Regions Visited (2) 400 Robots Destroyed (30) 150 Value Destroyed (687) 687 Prototype IDs (1) 20 Alien Tech Used (0) 0 Bonus (0) 0 TOTAL SCORE: 1757 Bonus ------- None Cogmind --------- Core Integrity 271/400 Matter 300/300 Energy 140/140 System Corruption 0% Temperature Cool (0) Movement Walking (260) Ox2 Location -9/Materials Parts ------- > --- POWER (1) -------- Light Deuterium Engine > --- PROPULSION (2) --- Aluminum Leg > --- UTILITY (4) ------ Improved Heat Sink Medium Storage Unit Visual Processing Unit Signal Interpreter > --- WEAPON (2) ------- Beam Rifle Beam Rifle > --- INVENTORY (10) --- Light Deuterium Engine Light Deuterium Engine Light Deuterium Engine Improved Heat Sink Beam Rifle Peak State ------------ > --- POWER ------------ Light Deuterium Engine > --- PROPULSION ------- Light Treads Light Treads > --- UTILITY ---------- Improved Heat Sink Medium Storage Unit Visual Processing Unit Signal Interpreter > --- WEAPON ----------- Beam Rifle Advanced Beam Cannon > --- INVENTORY -------- Light Deuterium Engine Light Deuterium Engine Light Deuterium Engine Small Storage Unit Terrain Scanner EM Pulse Gun Beam Rifle [Rating: 18] Favorites ----------- Power Ion Engine Engine Ion Engine Propulsion Aluminum Leg Treads Light Treads Leg Aluminum Leg Utility Signal Interpreter Device Heat Sink Storage Small Storage Unit Processor Signal Interpreter Protection Light Armor Plating Weapon Medium Laser Energy Gun Medium Laser Energy Cannon Advanced Beam Cannon Build | -11 -10 -9 ------- Run | Yrd Mat Mat Slots Evolved 2 | . . 2 Power . | . . . Propulsion . | . . . Utility 2 | . . 2 Weapon . | . . . Parts Attached 29 | 6 4 19 Power 3 | 1 . 2 Engine 3 | 1 . 2 Core . | . . . Reactor . | . . . Propulsion 5 | 2 . 3 Treads 2 | . . 2 Leg 3 | 2 . 1 Wheel . | . . . Hover . | . . . Flight . | . . . Utility 9 | 1 2 6 Device 3 | . 1 2 Storage 3 | 1 . 2 Processor 2 | . 1 1 Hackware . | . . . Protection 1 | . . 1 Artifact . | . . . Weapon 12 | 2 2 8 Energy Gun 10 | 2 1 7 Energy Cannon 2 | . 1 1 Ballistic Gun . | . . . Ballistic Cannon . | . . . Launcher . | . . . Special Weapon . | . . . Impact Weapon . | . . . Slashing Weapon . | . . . Piercing Weapon . | . . . Special Melee Weapon . | . . . Unidentified Prototypes 1 | . . 1 Parts Lost 5 | . 1 4 Power . | . . . Propulsion 2 | . . 2 Utility . | . . . Weapon 3 | . 1 2 Highest Loss Streak 3 | . 1 3 To Critical Strikes . | . . . Average Slot Usage (%) 98 | . 99 97 Engine 12 | . 14 11 Treads 7 | . . 10 Leg 16 | . 28 9 Device 9 | . 8 10 Storage 12 | . 14 11 Processor 10 | . 4 13 Protection 5 | . . 8 Energy Gun 16 | . 22 12 Energy Cannon 7 | . 5 8 Naked Turns . | . . . Heaviest Build 28 | 14 16 28 Greatest Support 40 | 20 20 40 Greatest Overweight (x) 2 | . . 2 Average Overweight (x) . | . . . Largest Inventory Capacity 10 | 8 8 10 Average Capacity 8 | 6 8 8 Most Carried 10 | 2 6 10 Average Carried 5 | 1 3 5 Final Capacity 10 | 8 8 10 Final Carried 6 | 2 6 5 Class Distribution -------------------- 100% | Mutant Dominant Class ---------------- Mutant | -10/Materials Mutant | -9/Materials Resources | -11 -10 -9 ----------- Run | Yrd Mat Mat Matter Collected 471 | 260 40 171 Remotely . | . . . Salvage Created 1062 | . 305 757 Parts 69 | . 22 47 Haulers Intercepted 1 | . 1 . Recyclers Shooed 2 | . . 2 Parts Field Recycled . | . . . Retrieved Matter . | . . . Parts Self-Destructed . | . . . Prevented . | . . . Kills | -11 -10 -9 ------- Run | Yrd Mat Mat Combat Hostiles Destroyed 22 | . 6 16 Guns 14 | . 6 8 Cannons 6 | . . 6 AOE 2 | . . 2 Classes Destroyed 7 | . 5 2 Worker 1 | . . 1 Hauler 1 | . 1 . Recycler 2 | . 1 1 Watcher 4 | . 2 2 Swarmer 9 | . 5 4 Grunt 7 | . 1 6 Sentry 6 | . . 6 Best Kill Streak 6 | . 5 6 Combat Bots Only 6 | . 4 6 Max Kills in Single Turn 2 | . 2 2 Gunslinging . | . . . Exploded 2 | . . 2 Melee . | . . . Uniques/NPCs Destroyed . | . . . Combat | -11 -10 -9 -------- Run | Yrd Mat Mat Hostile Shots Fired 160 | . 44 116 Missed 61 | . 17 44 Damage Taken 1174 | . 222 952 Core 167 | . 38 129 Absorbed by Shields . | . . . Core Remaining (%) 92 | 100 84 . Volleys Fired 78 | . 24 54 Largest 2 | . 2 2 Hottest 124 | . 100 124 Shots Fired 143 | . 47 96 Gun 114 | . 47 67 Cannon 29 | . . 29 Launcher . | . . . Special . | . . . Kinetic . | . . . Thermal 102 | . 31 71 Explosive . | . . . Electromagnetic 41 | . 16 25 Robot Hit Streak 10 | . 4 10 Robot Miss Streak 5 | . 5 3 Penetration Max . | . . . Secondary Targets 2 | . . 2 Max Gunslinging Chain 1 | . . 1 Shots Hit Robots 81 | . 23 58 Core Hits 44 | . 15 29 Critical Kills . | . . . Critical Parts Destroyed . | . . . Critical Strikes 7 | . 4 3 Burn 6 | . 3 3 Corrupt 1 | . 1 . Melee Attacks . | . . . Impact . | . . . Slashing . | . . . Piercing . | . . . Sneak Attacks . | . . . Combat Hostiles . | . . . Follow-up Attacks . | . . . Damage Inflicted 1476 | . 394 1082 Guns 929 | . 363 566 Cannons 371 | . . 371 Explosions 157 | . 31 126 Melee . | . . . Ramming 19 | . . 19 Kinetic . | . . . Thermal 1147 | . 254 893 Explosive . | . . . Electromagnetic 310 | . 140 170 Impact . | . . . Slashing . | . . . Piercing . | . . . Highest Corruption . | . . . Average Corruption . | . . . Corruption Purged . | . . . Corruption Blocked . | . . . Overload Shots . | . . . Overflow Damage 7 | . . 7 Projectiles 1 | . . 1 Explosions 6 | . . 6 Melee . | . . . Knockbacks . | . . . Impact . | . . . Kinetic . | . . . Secondary . | . . . Self-Inflicted Damage 32 | . . 32 Shots 1 | . . 1 Rammed 4 | . . 4 Targets Rammed 5 | . . 5 Kicked 1 | . . 1 Crushed . | . . . Highest Temperature 203 | . 30 203 Average Temperature 34 | . 13 41 Received Heat Transfer 336 | . 36 300 Siege Activations . | . . . Robots Corrupted . | . . . Combat Hostiles . | . . . Parts Fried . | . . . Impact Corruptions . | . . . Robots Melted . | . . . Combat Hostiles . | . . . Parts Melted 7 | . 1 6 Heat Transferred 2975 | . 938 2037 Parts Sabotaged . | . . . Parts Stolen . | . . . Parts Stripped . | . . . Power Chain Reactions 2 | . 1 1 Alert | -11 -10 -9 ------- Run | Yrd Mat Mat Peak Influence 387 | . 235 387 Initial 14 | . . 14 Average 126 | . 119 137 Maximum Alert Level 1 | . 1 1 Low Security (%) 65 | 100 57 67 Level 1 34 | . 42 32 Level 2 . | . . . Level 3 . | . . . Level 4 . | . . . Level 5 . | . . . High Security . | . . . Max Security . | . . . Squads Dispatched 4 | . 1 3 Investigation 1 | . . 1 Extermination . | . . . Reinforcement 3 | . 1 2 Assault . | . . . Garrison . | . . . Intercept . | . . . Searches Triggered . | . . . Construction Impeded . | . . . Haulers Reinforced . | . . . Active Scanning Responses . | . . . Cargo Convoy Interrupts . | . . . Stealth | -11 -10 -9 --------- Run | Yrd Mat Mat Distress Signals 5 | . 3 2 Communications Jammed . | . . . Distress Signals . | . . . Times Spotted 33 | . 13 20 Peak Tracking Total 6 | . 5 6 Tactical Retreats 2 | . . 2 Traps | -11 -10 -9 ------- Run | Yrd Mat Mat Traps Triggered 1 | . . 1 Indirectly . | . . . Trap Hack Attempts . | . . . Triggered . | . . . Disarmed . | . . . Reprogrammed . | . . . Reused . | . . . Traps Extracted . | . . . Installed . | . . . Triggered . | . . . Machines | -11 -10 -9 ---------- Run | Yrd Mat Mat Machines Disabled 1 | . 1 . Max in Single Turn 1 | . 1 . Machines Repaired . | . . . Machines Dismantled . | . . . Machines Sabotaged . | . . . Overloaded Fab Kills . | . . . Hacking | -11 -10 -9 --------- Run | Yrd Mat Mat Machines Accessed 3 | . 1 2 Terminals 2 | . . 2 Fabricators . | . . . Repair Stations . | . . . Recycling Units 1 | . 1 . Scanalyzers . | . . . Garrison Access . | . . . Total Hacks 6 | . 1 5 Successful 4 | . 1 3 Failed 2 | . . 2 Catastrophic . | . . . Database Lockouts . | . . . Manual . | . . . Terminals 5 | . . 5 Fabricators . | . . . Repair Stations . | . . . Recycling Units 1 | . 1 . Scanalyzers . | . . . Garrison Access . | . . . Terminal Hacks 3 | . . 3 Unreport Threat 1 | . . 1 Hauler Manifests 1 | . . 1 Zone Layout 1 | . . 1 Fabricator Hacks . | . . . Repair Station Hacks . | . . . Recycling Unit Hacks 1 | . 1 . Report Inventory 1 | . 1 . Scanalyzer . | . . . Garrison Access Hacks . | . . . Unauthorized Hacks . | . . . Terminals . | . . . Fabricators . | . . . Repair Stations . | . . . Recycling Units . | . . . Scanalyzers . | . . . Garrison Access . | . . . Data Cores Recovered . | . . . Used . | . . . Hacking Detections 1 | . . 1 Full Trace Events . | . . . Feedback Events . | . . . Feedback Blocked . | . . . Robot Schematics Acquired . | . . . Robots Built . | . . . Authchips . | . . . Time . | . . . Total Robot Build Rating . | . . . Part Schematics Acquired . | . . . Parts Built . | . . . Authchips . | . . . Time . | . . . Total Part Build Rating . | . . . Parts Repaired . | . . . Time . | . . . Parts Recycled . | . . . Recycled Matter . | . . . Retrieved Matter . | . . . Retrieved Components . | . . . Parts Scanalyzed . | . . . Part Schematics Acquired . | . . . Parts Damaged . | . . . Bothacking | -11 -10 -9 ------------ Run | Yrd Mat Mat Used RIF Installer . | . . . Robots Hacked . | . . . Non-combat . | . . . Combat . | . . . Robot Hacks Applied . | . . . Relay Couplers Released . | . . . Fabnet Peak Effective % . | . . . Robots Rewired . | . . . Allies Hacked . | . . . Hacks Repelled . | . . . Allies | -11 -10 -9 -------- Run | Yrd Mat Mat Total Allies . | . . . Largest Group . | . . . Highest-Rated Group . | . . . Highest-Rated Ally . | . . . Total Orders . | . . . Ally Attacks . | . . . Total Damage . | . . . Kills . | . . . Allies Corrupted . | . . . Allies Melted . | . . . Intel | -11 -10 -9 ------- Run | Yrd Mat Mat Robot Analysis Total . | . . . Derelict Logs Recovered . | . . . Drone Launches . | . . . Drone Recoveries . | . . . Exploration | -11 -10 -9 ------------- Run | Yrd Mat Mat Turns Passed 1318 | 49 445 824 Spaces Moved 708 | 35 291 382 Core 5 | 5 . . Treads 170 | . . 170 Legs 533 | 30 291 212 Wheels . | . . . Hover . | . . . Flight . | . . . Fastest Speed 50 | 50 120 120 Average Speed 140 | 110 120 159 Slowest Speed 260 | 120 120 260 Overloaded Moves . | . . . Propulsion Burnouts . | . . . Robots Hopped . | . . . Cave-ins Triggered . | . . . Exploration Rate (%) 27 | 3 47 32 Regions Visited 2 Branch Regions . Pre-discovered Areas . | . . . Known Exits Taken 1 | . 1 . Unknown Exits Taken 1 | 1 . . Scrap Searched . | . . . Spaces Dug . | . . . Terrain Destroyed 4 | . 3 1 Melee . | . . . Projectile . | . . . AOE 4 | . 3 1 Terrain Rammed . | . . . Walls Destroyed . | . . . Machines Disabled . | . . . Actions | -11 -10 -9 --------- Run | Yrd Mat Mat Total 881 | 42 339 500 Wait 19 | . 14 5 Move 706 | 34 290 382 Hop . | . . . Pick Up 25 | 2 6 17 Fast Attach 8 | 6 1 1 Attach 7 | . 1 6 Detach . | . . . Swap 14 | . 2 12 Drop 19 | . 1 18 Fire 78 | . 24 54 Melee . | . . . Ram . | . . . Kick 1 | . . 1 Crush 4 | . . 4 Escape Stasis . | . . . Rewire . | . . . Trap . | . . . Miscellaneous . | . . . Route ------- -11/Scrapyard -10/Materials (discovered 3 exits: *Mat / [*Min x2]) -9/Materials (discovered 2 exits: [*Mat] / *Sto) History --------- Turn | Location | Event 4 | -11/Scrapyard | Discovered new exit (range 16) 50 | -11/Scrapyard | Entered Materials 252 | -10/Materials | Discovered new exit (range 16) 285 | -10/Materials | Discovered new exit (range 16) 305 | -10/Materials | Build established: Mutant 408 | -10/Materials | Discovered new exit (range 3) 409 | -10/Materials | Identified exit to Materials 495 | -10/Materials | Entered another Materials area 495 | -9/Materials | Evolved 2 slots: Utility x2 541 | -9/Materials | Discovered new exit (range 17) 561 | -9/Materials | Identified exit to Storage 1108 | -9/Materials | Discovered new exit (range 13) 1299 | -9/Materials | Lost 3 parts (2n1w) 1319 | -9/Materials | Self-destructed Last Messages --------------- 01253_ Y-45 Defender suffers critical hit (Destroy). 01257_ Lgt. Armor Plating melted. 01257_ Y-45 Defender destroyed. 01257_ Switching to secondary target: Y-45 Defender. 01268_ Lgt. Treads destroyed. 01270_ R-06 Scavenger collects Imp. Ion Engine. 01274_ R-06 Scavenger collects Beam Rifle. 01275_ Acquired 15 matter. 01278_ Y-45 Defender destroyed. 01282_ R-06 Scavenger collects Reaction Control System. 01294_ R-06 Scavenger collects Lgt. Treads. 01295_ R-06 Scavenger collects Hvy. Assault Rifle. 01299_ R-06 Scavenger collects Heat Sink. 01302_ Destroyed Tractor Beam. 01302_ R-06 Scavenger destroyed. 01311_ W-16 Scout destroyed. Map ----- +----------------------------------------------------+ | ?????########### #????????# !#????????????????? | | ?????# !* # #????????# !#????????????????? | | ?????# != # ########?# !##????????????????? | | ?????# # # #?####?????????????????? | | ?????# + # "" #??????????????????????? | | ?????# # # "Y #??????????????????????? | | ?????# = # %+ "" #??????????????????????? | | ?????# # # #??????????????????????? | | ?????# # # #??????????????????????? | | ?????########### ########??????????????????????? | | ???????????????# #??????????????????????? | | ???????????????# #??????????????????????? | | ???????????????# %%%%#??????????????????????? | | ??????????????#####+### +??????????????????????? | | ??????????????# ## #??????????????????????? | | ??????????????# """ ## ########???????????????? | | ??????????????# """ ## ## ? ????????????? | | ??????????????# """ ## ## #???????????? | | ??????????????# ##r ## ! """ ????????????? | | ??????????????# ## ## """"" #???????????? | | ??????????????######### ## """"" #???????????? | | ??????????????????????# % ## """"" #???????????? | | ??????????????????????# %## """ #???????????? | | ?????????????????????## ## #???????????? | | ?????????????????????# !% ###;###########???????? | | ????????????########## %[@ #???????? | | ?????# *% !!* % < #???????? | | ?????????????######### % % #???????? | | ?????????????????????# ### ######???????? | | ???????????????????#####+##### #????????????? | | ???????????######### #! !#????????????? | | ????+ + #! !!#????????????? | | ???????????######### ########????????????? | | ???????????????????# ] """" #???????????????????? | | ???????????????????# / """" #???????????????????? | | ???????????????????# """" #???????????????????? | | ???????????????????# #???????????????????? | | ???????????????????# ! #???????????????????? | | ???????????????????###########???????????????????? | | ?????????????????????????????????????????????????? | | ?????????????????????????????????????????????????? | | ?????????????????????????????????????????????????? | | | | | | | | | | | | | | | | | +----------------------------------------------------+ Best States ------------- Heat Dissipation 42 Energy Generation 14 Energy Capacity 265 Matter Stores 300 Matter Capacity 300 Sight Range 18 Terrain Scan Density 10 Armor Coverage 150 Evasion (%) 55 Recoil Reduction 2 Item Schematics ----------------- None Robot Schematics ------------------ None Fabricated ------------ Nothing Alien Tech Used ----------------- None Achievements -------------- None Challenges ------------ None Game ------ Seed ChipProcessingKatana Manual? 0 Play Time 00:15:00 Cumulative 27.1 hours Start 2024.04.21 @ 07:36:57 End 2024.04.21 @ 07:50:16 Sessions 1 Manual Loads 0 Difficulty Rogue Special Mode None Game No. 42 Rogue 26 Adventurer 16 Explorer 0 Win Type - Total 0 Types 0/0/0/0/0/0/0/0/0 Lore% 8 Gallery% 24 Achievement% 18 Wizard Run 0 Options --------- Layout 1 ASCII 0 Keyboard 0 Movement Mouse Keybinds 0 Fullscreen 2 Font 24/Smallcaps Map View 50x35 Zoom Use 0% Tactical HUD 1 Map Filters NONE Filters NONE Steam 1 RUN: f4728d80-725b-49d6-be65-dc1e1bf99cc2